bitfinex-derivatives/quotes_SOLF0:USTF0_20250816
["timestamp","ask_amount","ask_price","bid_price","bid_amount"]
[1755352406715,12.15413498,187.43,187.33,2.0]
[1755352406915,2.95,187.41,187.33,7.3343]
[1755352407116,2.95,187.39,187.33,7.3343]
[1755352407911,2.95,187.39,187.33,5.64830807]
[1755352408107,2.95,187.38,187.34,2.0]
[1755352408309,2.95,187.46,187.34,2.0]
[1755352408511,2.95,187.44,187.35,5.3339]
[1755352408718,2.95,187.42,187.35,5.3339]
[1755352409015,2.95,187.42,187.34,7.3343]
[1755352410123,2.95,187.42,187.35,5.334]
[1755352410420,2.95,187.42,187.36,2.0]
[1755352411116,2.95,187.42,187.35,5.334]
[1755352411714,2.95,187.42,187.33,3.64830807]
[1755352412216,2.95,187.42,187.33,10.98260807]
[1755352412417,2.95,187.42,187.33,8.98260807]
[1755352412619,2.95,187.42,187.34,5.3341]
[1755352413019,2.95,187.42,187.34,2.0]
[1755352414223,2.95,187.42,187.36,5.3337]
[1755352414919,2.95,187.42,187.35,7.3339]
[1755352415417,2.95,187.42,187.35,2.0]
[1755352415621,2.95,187.42,187.33,3.64830807]
[1755352415926,2.95,187.4,187.33,3.64830807]
[1755352416118,2.95,187.4,187.33,10.98260807]
[1755352416923,2.95,187.4,187.34,5.3342]
[1755352417423,2.95,187.4,187.35,5.3339]
[1755352417623,2.95,187.4,187.36,2.0]
[1755352417818,3.64830807,187.44,187.33,3.64830807]
[1755352418018,2.95,187.39,187.37,2.0]
[1755352418224,2.95,187.38,187.37,2.0]
[1755352419524,2.95,187.45,187.37,2.0]
[1755352419719,2.95,187.45,187.4,2.0]
[1755352419922,3.64830807,187.5,187.33,3.64830807]
[1755352419923,2.95,187.49,187.42,3.64830807]
[1755352420116,2.95,187.47,187.43,2.0]
[1755352420320,2.95,187.46,187.43,2.0]
[1755352420518,2.95,187.46,187.45,5.3311]
[1755352420721,2.95,187.48,187.46,2.0]
[1755352420921,2.95,187.48,187.45,2.0]
[1755352421221,2.95,187.47,187.46,2.0]
[1755352422128,2.95,187.47,187.46,7.3309]
[1755352423523,2.95,187.56,187.45,3.64830807]
[1755352423731,2.95,187.54,187.46,2.0]
[1755352424030,2.95,187.52,187.46,2.0]
[1755352424825,2.95,187.51,187.49,2.0]
[1755352425229,2.95,187.5,187.49,7.33]
[1755352425629,2.95,187.5,187.49,2.0]
[1755352425828,2.95,187.5,187.4,2.0]
[1755352426019,2.95,187.49,187.47,2.0]
[1755352426224,2.95,187.49,187.48,2.0]
[1755352426625,2.95,187.49,187.46,3.64830807]
[1755352426828,2.95,187.48,187.43,3.64830807]
[1755352427022,137.32830807,187.57,187.44,7.3314]
[1755352427222,4.21794613,187.56,187.45,2.0]
[1755352427522,2.95,187.54,187.45,2.0]
[1755352427829,2.95,187.52,187.45,7.3311]
[1755352428126,2.95,187.52,187.46,2.0]
[1755352429928,2.95,187.52,187.46,7.3307]
[1755352430228,2.95,187.52,187.46,3.64830807]
[1755352430425,2.91,187.56,187.48,5.3301]
[1755352430620,2.91,187.54,187.46,3.64830807]
[1755352430923,2.91,187.52,187.45,2.01]
[1755352431627,2.91,187.52,187.43,3.64830807]
[1755352431830,2.91,187.5,187.43,3.64830807]
[1755352432028,2.91,187.5,187.43,5.65830807]
[1755352433830,2.91,187.5,187.43,3.64830807]
[1755352434328,2.91,187.5,187.43,5.65830807]
[1755352435035,2.91,187.5,187.43,3.64830807]
[1755352435227,4.22305929,187.49,187.43,3.64830807]
[1755352435432,8.12664892,187.54,187.43,3.64830807]
[1755352435433,2.91,187.48,187.43,3.64830807]
[1755352436133,2.91,187.48,187.43,5.65830807]
[1755352437233,2.91,187.48,187.43,2.01]
[1755352437432,3.64830807,187.51,187.4,5.65830807]
[1755352437733,3.64830807,187.51,187.4,2.01]
[1755352437734,2.91,187.49,187.4,2.01]
[1755352437931,2.91,187.47,187.4,2.01]
[1755352438931,2.91,187.47,187.37,5.65830807]
[1755352439636,2.91,187.47,187.38,2.01]
[1755352439934,2.91,187.45,187.38,2.01]
[1755352440838,2.91,187.45,187.36,2.01]
[1755352441031,2.91,187.43,187.36,2.01]
[1755352442927,2.91,187.43,187.36,7.3437]
[1755352443339,4.22797888,187.42,187.36,7.3437]
[1755352443538,4.22797888,187.42,187.34,3.64830807]
[1755352443539,2.91,187.46,187.37,5.65830807]
[1755352443739,2.91,187.44,187.38,2.01]
[1755352443940,2.91,187.44,187.4,3.64830807]
[1755352444138,2.91,187.44,187.42,2.01]
[1755352444439,2.91,187.46,187.41,2.01]
[1755352445134,2.91,187.45,187.41,2.01]
[1755352445536,2.91,187.45,187.43,5.3315]
[1755352445836,2.91,187.45,187.44,2.01]
[1755352446840,2.91,187.45,187.43,7.3415]
[1755352448541,2.91,187.52,187.44,2.01]
[1755352448839,2.91,187.5,187.44,2.01]
[1755352449039,2.91,187.48,187.43,5.3315]
[1755352449237,2.91,187.48,187.43,7.3415]
[1755352449944,2.91,187.48,187.44,7.3414]
[1755352451945,2.91,187.52,187.46,2.01]
[1755352452243,2.91,187.5,187.44,2.01]
[1755352452949,2.91,187.5,187.46,5.3307]
[1755352453146,2.91,187.5,187.47,2.01]
[1755352453541,2.91,187.5,187.46,5.3307]
[1755352453736,2.91,187.5,187.46,7.3407]
[1755352454946,2.91,187.5,187.46,2.01]
[1755352456243,2.91,187.5,187.46,7.3408]
[1755352456444,2.91,187.5,187.47,2.01]
[1755352456644,2.91,187.5,187.44,2.01]
[1755352456837,4.23225097,187.49,187.41,2.01]
[1755352457036,2.91,187.5,187.41,2.01]
[1755352457246,2.91,187.48,187.42,5.3319]
[1755352457443,2.91,187.48,187.43,3.64830807]
[1755352457645,2.91,187.52,187.44,2.01]
[1755352457840,2.91,187.5,187.41,5.65830807]
[1755352458054,2.91,187.48,187.41,5.65830807]
[1755352458245,2.91,187.46,187.41,5.65830807]
[1755352459947,2.91,187.46,187.42,2.01]
[1755352460449,2.91,187.46,187.41,3.64830807]
[1755352460648,2.91,187.46,187.41,5.65830807]
[1755352460947,2.91,187.46,187.42,7.342]
[1755352461248,2.91,187.46,187.42,2.01]
[1755352461448,3.64830807,187.54,187.44,5.3313]
[1755352461449,2.96,187.49,187.44,5.3313]
[1755352461747,4.47834085,187.52,187.44,5.3313]
[1755352461748,4.2477754,187.48,187.45,2.01]
[1755352461944,2.96,187.46,187.44,5.3313]
[1755352462149,2.96,187.46,187.44,7.3413]
[1755352462352,4.47834085,187.52,187.45,2.01]
[1755352462545,12.59509446,187.57,187.45,2.01]
[1755352462546,4.25001201,187.51,187.45,2.01]
[1755352462850,2.96,187.49,187.45,2.01]
[1755352463240,2.96,187.49,187.42,2.01]
[1755352463551,2.96,187.47,187.42,2.01]
[1755352463741,4.2516594,187.46,187.42,2.01]
[1755352463944,4.47834085,187.5,187.42,2.01]
[1755352464147,2.96,187.48,187.42,2.01]
[1755352464445,2.96,187.46,187.42,7.342]
[1755352466650,2.96,187.46,187.42,5.332]
[1755352466955,2.96,187.44,187.42,5.332]
[1755352467154,2.96,187.44,187.41,8.98050807]
[1755352467354,2.96,187.44,187.41,10.98050807]
[1755352469557,2.96,187.48,187.41,10.98050807]
[1755352469858,2.96,187.46,187.38,5.64830807]
[1755352470056,2.96,187.44,187.38,5.64830807]
[1755352470358,4.25164993,187.43,187.39,5.3328]
[1755352470558,4.25164993,187.42,187.36,3.64830807]
[1755352470749,4.25164993,187.41,187.36,2.0]
[1755352470955,2.96,187.4,187.36,2.0]
[1755352471354,4.47834085,187.45,187.37,2.0]
[1755352471562,2.96,187.39,187.37,2.0]
[1755352471954,2.96,187.38,187.37,7.3334]
[1755352472357,2.96,187.4,187.37,7.3334]
[1755352472557,2.96,187.39,187.37,7.3334]
[1755352473563,2.96,187.38,187.37,7.3334]
[1755352473759,2.96,187.44,187.37,7.3334]
[1755352474065,2.96,187.42,187.39,2.0]
[1755352474263,2.96,187.4,187.39,2.0]
[1755352474454,2.96,187.44,187.39,5.3326]
[1755352474661,2.96,187.41,187.4,2.0]
[1755352474962,7.21116788,187.41,187.39,5.3326]
[1755352475158,4.47834085,187.46,187.39,5.3326]
[1755352475159,2.96,187.4,187.39,7.3326]
[1755352475363,2.96,187.45,187.4,7.3326]
[1755352475663,2.96,187.43,187.37,2.0]
[1755352475864,4.47834085,187.46,187.38,5.333]
[1755352475865,2.96,187.41,187.38,5.333]
[1755352476262,2.96,187.41,187.36,3.64830807]
[1755352476456,2.96,187.41,187.37,5.3333]
[1755352476862,4.25121352,187.4,187.37,2.0]
[1755352477058,2.96,187.39,187.38,7.3331]
[1755352477866,2.96,187.39,187.38,5.3331]
[1755352478566,2.96,187.39,187.38,7.3331]
[1755352479260,16.0,187.54,187.38,7.3331]
[1755352479261,2.96,187.41,187.38,3.64830807]
[1755352479661,2.96,187.41,187.4,2.0]
[1755352479857,2.96,187.41,187.4,7.3326]
[1755352480564,2.96,187.46,187.39,2.0]
[1755352480762,4.25394951,187.45,187.39,2.0]
[1755352480968,2.96,187.43,187.42,5.3318]
[1755352481268,7.21394951,187.43,187.42,5.3318]
[1755352482864,2.96,187.43,187.42,5.3318]
[1755352483259,2.96,187.43,187.42,7.3318]
[1755352483459,2.96,187.43,187.41,5.3322]
[1755352483872,2.96,187.43,187.39,7.3328]
[1755352484169,2.96,187.43,187.39,2.0]
[1755352484871,2.96,187.43,187.4,2.0]
[1755352485064,2.96,187.44,187.4,2.0]
[1755352485260,2.96,187.43,187.4,2.0]
[1755352485669,2.96,187.49,187.42,2.0]
[1755352485972,2.96,187.47,187.45,2.0]
[1755352486174,7.21476377,187.46,187.45,7.3312]
[1755352486364,7.21476377,187.46,187.45,5.3312]
[1755352486869,2.96,187.47,187.45,2.0]
[1755352487371,2.96,187.47,187.46,7.3311]
[1755352487571,2.96,187.49,187.46,2.0]
[1755352487774,7.21539086,187.48,187.45,2.0]
[1755352488073,4.47834085,187.53,187.48,7.3304]
[1755352488267,2.96,187.51,187.41,5.64830807]
[1755352488577,2.96,187.49,187.42,5.3321]
[1755352488864,3.05,187.47,187.41,3.64830807]
[1755352489069,3.05,187.47,187.44,5.3313]
[1755352489274,3.05,187.51,187.42,2.01]
[1755352489463,3.05,187.49,187.42,2.01]
[1755352489668,3.05,187.47,187.42,2.01]
[1755352489868,3.05,187.47,187.43,2.01]
[1755352490773,3.05,187.47,187.42,5.3318]
[1755352490972,3.05,187.47,187.43,2.01]
[1755352491372,3.05,187.47,187.42,5.3318]
[1755352491572,3.05,187.47,187.43,2.01]
[1755352492074,3.05,187.47,187.43,5.3317]
[1755352492374,3.05,187.51,187.44,3.64830807]
[1755352492673,3.05,187.49,187.46,7.3409]
[1755352492873,3.05,187.48,187.47,2.01]
[1755352493673,3.05,187.48,187.47,7.3406]
[1755352495172,3.05,187.47,187.46,5.3308]
[1755352495765,3.05,187.46,187.44,5.65830807]
[1755352495972,7.52834085,187.53,187.44,3.64830807]
[1755352496172,3.05,187.51,187.44,3.64830807]
[1755352496377,4.23022698,187.5,187.44,3.64830807]
[1755352496569,3.64830807,187.55,187.45,2.01]
[1755352496570,3.05,187.47,187.45,2.01]
[1755352496770,3.05,187.47,187.45,7.3412]
[1755352496966,3.05,187.47,187.44,3.64830807]
[1755352497170,3.05,187.47,187.46,2.01]
[1755352498180,3.05,187.47,187.46,7.3409]
[1755352498670,3.05,187.53,187.46,2.01]
[1755352498872,3.05,187.51,187.44,3.64830807]
[1755352499067,3.05,187.49,187.44,3.64830807]
[1755352500278,3.05,187.49,187.42,10.99030807]
[1755352500471,3.05,187.47,187.4,5.65830807]
[1755352500872,3.05,187.47,187.41,5.3321]
[1755352501874,3.05,187.47,187.4,3.64830807]
[1755352502176,3.05,187.45,187.4,3.64830807]
[1755352502377,3.05,187.45,187.4,8.98080807]
[1755352503077,3.05,187.45,187.4,5.3325]
[1755352503477,3.05,187.45,187.39,5.3328]
[1755352503674,4.23032817,187.44,187.36,135.21]
[1755352503980,3.05,187.42,187.36,135.21]
[1755352504179,3.05,187.42,187.36,133.2]
[1755352504381,3.05,187.42,187.38,2.01]
[1755352504681,3.05,187.42,187.39,5.3327]
[1755352504877,3.05,187.42,187.36,133.2]
[1755352505078,3.05,187.42,187.36,135.21]
[1755352505282,3.05,187.42,187.38,5.333]
[1755352505680,3.05,187.42,187.37,2.01]
[1755352505877,3.05,187.42,187.35,3.64830807]
[1755352506078,4.23018294,187.41,187.35,3.64830807]
[1755352506373,3.05,187.39,187.35,3.64830807]
[1755352506985,4.47834085,187.44,187.35,3.64830807]
[1755352507174,3.05,187.42,187.39,2.01]
[1755352507573,3.05,187.42,187.39,5.3327]
[1755352507784,3.05,187.42,187.37,2.01]
[1755352508077,3.05,187.42,187.37,5.65830807]
[1755352508782,3.05,187.42,187.31,358.36]
[1755352508783,3.05,187.42,187.35,3.64830807]
[1755352508983,3.05,187.4,187.35,3.64830807]
[1755352509378,4.23169293,187.39,187.32,2.01]
[1755352509576,370.26904853,187.53,187.3,138.69830807]
[1755352509577,4.23169293,187.38,187.3,138.69830807]
[1755352509777,3.05,187.36,187.29,5.3357]
[1755352509982,3.05,187.34,187.27,5.65830807]
[1755352510782,3.05,187.34,187.29,5.3357]
[1755352512886,3.05,187.34,187.3,5.3354]
[1755352514092,3.05,187.34,187.31,5.3351]
[1755352515990,3.05,187.39,187.28,2.01]
[1755352516198,3.05,187.37,187.31,2.01]
[1755352516797,3.05,187.37,187.33,5.3346]
[1755352518602,3.05,187.37,187.32,5.3348]
[1755352519701,3.13,187.42,187.33,2.01]
[1755352519896,3.13,187.4,187.33,2.01]
[1755352520103,3.13,187.38,187.35,5.3338]
[1755352522498,3.13,187.38,187.34,5.3342]
[1755352523799,3.13,187.38,187.33,7.3445]
[1755352525507,3.13,187.38,187.32,5.3348]
[1755352525710,3.13,187.38,187.31,2.01]
[1755352526504,3.13,187.38,187.31,7.3451]
[1755352526705,3.13,187.38,187.29,2.01]
[1755352527009,3.13,187.38,187.3,5.3355]
[1755352527304,3.13,187.38,187.29,2.01]
[1755352527912,3.13,187.38,187.31,5.3351]
[1755352528705,3.13,187.38,187.31,7.3451]
[1755352529304,3.13,187.38,187.32,2.01]
[1755352530011,3.13,187.38,187.32,7.3446]
[1755352530212,3.13,187.38,187.33,2.01]
[1755352531012,3.13,187.38,187.31,5.3351]
[1755352531606,3.13,187.38,187.3,7.3453]
[1755352532007,3.13,187.38,187.31,5.335]
[1755352532301,3.13,187.38,187.31,7.345]
[1755352532503,3.13,187.38,187.31,2.01]
[1755352533210,3.13,187.38,187.32,5.3349]
[1755352534713,3.13,187.38,187.32,7.3449]
[1755352535214,3.13,187.38,187.33,5.3345]
[1755352535414,3.13,187.38,187.33,7.3445]
[1755352538621,3.13,187.38,187.35,2.01]
[1755352538914,3.13,187.37,187.36,2.01]
[1755352540317,3.13,187.37,187.35,5.3339]
[1755352540508,3.13,187.36,187.35,7.3439]
[1755352542815,8.12664892,187.43,187.33,2.01]
[1755352543113,7.34411567,187.42,187.31,5.65830807]
[1755352543312,4.21411567,187.41,187.31,5.65830807]
[1755352543513,3.13,187.39,187.31,2.01]
[1755352543712,3.13,187.37,187.3,5.3352]
[1755352543916,3.13,187.35,187.3,5.3352]
[1755352544117,3.13,187.35,187.31,2.01]
[1755352544320,3.13,187.35,187.29,7.3457]
[1755352545118,3.13,187.35,187.3,5.3354]
[1755352545420,3.13,187.35,187.3,7.3454]
[1755352546616,4.22249251,187.34,187.3,7.3454]
[1755352546822,3.13,187.33,187.3,7.3454]
[1755352547022,3.13,187.32,187.31,2.01]
[1755352547522,3.13,187.37,187.3,2.01]
[1755352547722,7.35484122,187.36,187.3,2.01]
[1755352547924,7.35484122,187.35,187.3,2.01]
[1755352548218,3.13,187.35,187.33,5.3344]
[1755352548419,3.13,187.35,187.34,2.01]
[1755352548623,4.22513374,187.35,187.32,7.3448]
[1755352548817,3.1,187.33,187.32,7.3448]
[1755352549019,3.1,187.33,187.32,2.01]
[1755352550315,4.47834085,187.39,187.3,5.3354]
[1755352550518,3.1,187.37,187.29,3.64830807]
[1755352550721,3.1,187.37,187.28,2.01]
[1755352550722,3.1,187.35,187.28,2.01]
[1755352550921,4.22938741,187.34,187.28,2.01]
[1755352551115,3.1,187.32,187.28,2.01]
[1755352551319,3.1,187.3,187.28,2.01]
[1755352551620,3.1,187.29,187.28,7.346]
[1755352553427,3.1,187.29,187.28,2.01]
[1755352554230,3.1,187.34,187.27,7.3462]
[1755352554417,3.1,187.32,187.28,5.336]
[1755352554726,3.1,187.29,187.28,7.346]
[1755352556123,4.47834085,187.35,187.27,5.3362]
[1755352556325,3.1,187.28,187.27,5.3362]
[1755352556620,4.47834085,187.34,187.27,5.3363]
[1755352556818,3.1,187.28,187.27,7.3463]
[1755352557023,3.1,187.33,187.27,7.3463]
[1755352557225,3.1,187.31,187.28,2.01]
[1755352557525,3.1,187.29,187.28,2.01]
[1755352557726,3.1,187.29,187.27,5.3363]
[1755352557931,3.1,187.28,187.27,5.3363]
[1755352558127,3.1,187.33,187.26,5.3365]
[1755352558326,3.1,187.31,187.26,5.3365]
[1755352558528,3.1,187.29,187.26,5.3365]
[1755352559325,3.1,187.33,187.28,2.01]
[1755352559526,3.1,187.31,187.28,2.01]
[1755352559730,3.1,187.29,187.26,2.01]
[1755352559930,3.1,187.29,187.27,5.3361]
[1755352560126,3.1,187.29,187.26,2.01]
[1755352560831,4.47834085,187.34,187.27,5.3361]
[1755352561028,3.1,187.32,187.28,3.64830807]
[1755352561225,3.1,187.35,187.29,2.01]
[1755352561424,3.1,187.33,187.29,2.01]
[1755352561628,3.1,187.31,187.29,2.01]
[1755352561930,4.47834085,187.36,187.29,2.01]
[1755352562128,4.22488417,187.35,187.31,3.64830807]
[1755352562428,7.32488417,187.34,187.31,3.64830807]
[1755352562635,4.22488417,187.33,187.32,7.3449]
[1755352562827,3.1,187.34,187.33,2.01]
[1755352563028,7.3254851,187.34,187.33,2.01]
[1755352564329,7.3254851,187.34,187.33,5.3346]
[1755352565233,4.2254851,187.34,187.33,7.3446]
[1755352565434,3.1,187.36,187.35,5.334]
[1755352565635,7.32443587,187.36,187.35,5.334]
[1755352569032,7.32591219,187.36,187.35,5.334]
[1755352570342,3.1,187.38,187.37,5.3335]
[1755352570532,7.32710006,187.38,187.37,5.3335]
[1755352571032,50.60881831,187.39,187.38,5.3332]
[1755352571336,4.2263374,187.39,187.38,7.3432]
[1755352571538,3.1,187.46,187.45,5.3312]
[1755352571735,3.1,187.46,187.38,133.2]
[1755352571736,3.1,187.48,187.46,2.01]
[1755352572133,3.1,187.48,187.44,3.64830807]
[1755352572333,3.1,187.48,187.44,5.65830807]
[1755352572535,4.48292325,187.54,187.47,5.3305]
[1755352572840,3.1,187.53,187.41,3.64830807]
[1755352573138,3.1,187.49,187.41,8.98060807]
[1755352573936,3.1,187.49,187.42,5.332]
[1755352574141,3.1,187.49,187.42,2.01]
[1755352574736,3.1,187.49,187.41,3.64830807]
[1755352575938,3.1,187.49,187.41,5.65830807]
[1755352576139,3.1,187.49,187.41,7.3421]
[1755352582848,2.94,187.53,187.44,2.0]
[1755352583552,2.94,187.51,187.46,7.3308]
[1755352584347,2.94,187.51,187.47,2.0]
[1755352585253,2.94,187.56,187.47,2.0]
[1755352585557,2.94,187.54,187.47,2.0]
[1755352585754,2.94,187.52,187.45,7.3312]
[1755352587357,2.94,187.52,187.47,2.0]
[1755352588252,2.94,187.52,187.48,2.0]
[1755352589452,2.94,187.51,187.48,2.0]
[1755352589651,2.94,187.51,187.5,2.0]
[1755352590361,2.94,187.51,187.5,7.3298]
[1755352590957,4.48292325,187.6,187.5,7.3298]
[1755352591157,4.48292325,187.6,187.49,10.97830807]
[1755352591158,2.94,187.58,187.49,10.97830807]
[1755352591358,4.0819359,187.57,187.49,10.97830807]
[1755352591557,2.94,187.55,187.49,10.97830807]
[1755352592557,2.94,187.55,187.49,5.64830807]
[1755352595159,2.94,187.55,187.5,2.0]
[1755352595458,2.94,187.55,187.49,3.64830807]
[1755352595459,2.94,187.55,187.51,2.0]
[1755352595660,2.94,187.55,187.52,2.0]
[1755352596756,4.44028027,187.6,187.51,5.3295]
[1755352596968,2.94,187.54,187.47,2.0]
[1755352597463,2.94,187.54,187.48,2.0]
[1755352597863,2.94,187.54,187.48,7.3303]
[1755352598063,2.94,187.54,187.48,5.3303]
[1755352598263,2.94,187.54,187.5,2.0]
[1755352601274,2.94,187.54,187.48,2.0]
[1755352601668,2.94,187.54,187.48,7.3303]
[1755352601868,2.94,187.54,187.48,5.3303]
[1755352602068,2.94,187.58,187.5,2.0]
[1755352602272,4.08254432,187.57,187.53,2.0]
[1755352602570,2.94,187.57,187.53,2.0]
[1755352603075,2.94,187.58,187.57,2.0]
[1755352603464,2.94,187.58,187.57,7.3277]
[1755352604672,2.94,187.57,187.55,5.64830807]
[1755352605176,2.94,187.56,187.55,10.97660807]
[1755352605377,2.94,187.58,187.55,5.64830807]
[1755352605570,80.9741093,187.62,187.55,3.64830807]
[1755352605883,4.08337896,187.61,187.57,5.3277]
[1755352606073,2.94,187.58,187.57,5.3277]
[1755352606571,2.94,187.58,187.55,3.64830807]
[1755352606572,2.94,187.61,187.58,7.3273]
[1755352606773,4.44028027,187.66,187.58,7.3273]
[1755352606972,2.94,187.59,187.58,7.3273]
[1755352607268,4.08411051,187.65,187.58,7.3273]
[1755352607269,2.94,187.65,187.59,2.0]
[1755352607471,2.94,187.69,187.61,3.64830807]
[1755352607674,2.94,187.67,187.63,5.326]
[1755352607975,2.94,187.67,187.63,7.326]
[1755352608577,2.94,187.67,187.63,2.0]
[1755352610670,2.94,187.67,187.63,7.3261]
[1755352611072,3.04,187.66,187.62,2.0]
[1755352611279,3.04,187.68,187.65,7.3255]
[1755352611478,3.04,187.67,187.66,2.0]
[1755352611882,3.04,187.66,187.65,7.3255]
[1755352612279,48.19145023,187.7,187.65,7.3255]
[1755352612573,3.04,187.67,187.65,7.3255]
[1755352612971,3.04,187.69,187.61,3.64830807]
[1755352613178,3.04,187.67,187.64,2.0]
[1755352613380,3.04,187.66,187.64,2.0]
[1755352614280,48.19145023,187.7,187.64,2.0]
[1755352614475,3.04,187.65,187.64,2.0]
[1755352614979,3.04,187.65,187.63,5.326]
[1755352615177,3.04,187.65,187.63,7.326]
[1755352616980,3.04,187.65,187.63,5.326]
[1755352617178,3.04,187.65,187.64,2.0]
[1755352618482,3.04,187.65,187.62,2.0]
[1755352619484,3.04,187.64,187.62,7.3263]
[1755352620185,3.04,187.63,187.61,8.97490807]
[1755352620382,3.04,187.63,187.6,2.0]
[1755352620685,3.04,187.63,187.58,5.64830807]
[1755352621083,3.04,187.67,187.59,2.0]
[1755352621284,51.8397583,187.7,187.58,3.64830807]
[1755352621285,3.04,187.65,187.6,7.3269]
[1755352621484,3.04,187.65,187.59,2.0]
[1755352621885,3.04,187.65,187.61,2.0]
[1755352622380,3.04,187.65,187.61,7.3264]
[1755352623383,3.04,187.65,187.62,5.3264]
[1755352623979,3.04,187.65,187.63,5.3261]
[1755352624585,3.04,187.65,187.62,5.3263]
[1755352628086,3.04,187.65,187.63,5.326]
[1755352628685,3.04,187.65,187.61,3.64830807]
[1755352628987,3.04,187.65,187.64,7.3258]
[1755352629587,3.04,187.65,187.61,3.64830807]
[1755352629588,3.04,187.69,187.65,5.3255]
[1755352629790,3.04,187.67,187.65,5.3255]
[1755352630185,3.04,187.69,187.65,7.3255]
[1755352630376,48.19145023,187.7,187.66,5.3252]
[1755352630579,3.04,187.67,187.66,5.3252]
[1755352631185,3.04,187.67,187.66,7.3252]
[1755352632489,3.04,187.67,187.66,5.3252]
[1755352632987,3.04,187.67,187.61,2.0]
[1755352633187,4.07442496,187.66,187.59,2.0]
[1755352633388,3.04,187.65,187.59,2.0]
[1755352634294,3.04,187.65,187.57,2.0]
[1755352634790,3.04,187.65,187.57,7.3277]
[1755352634990,3.04,187.65,187.57,2.0]
[1755352635391,4.07661143,187.64,187.57,2.0]
[1755352635592,3.04,187.63,187.57,2.0]
[1755352635793,3.04,187.63,187.59,5.327]
[1755352635993,3.04,187.63,187.59,7.327]
[1755352637291,3.04,187.63,187.6,5.3269]
[1755352639095,3.04,187.63,187.61,5.3266]
[1755352639295,2.92,187.62,187.59,2.0]
[1755352639497,2.92,187.64,187.59,2.0]
[1755352639688,2.92,187.63,187.62,5.3262]
[1755352640392,56.28003857,187.7,187.61,7.3166]
[1755352640596,2.92,187.68,187.58,1.99]
[1755352640785,2.92,187.66,187.58,1.99]
[1755352640985,2.92,187.64,187.58,7.3175]
[1755352641394,2.92,187.64,187.56,3.64830807]
[1755352641597,2.92,187.64,187.57,1.99]
[1755352641892,2.92,187.64,187.61,5.3267]
[1755352642096,2.92,187.64,187.59,3.64830807]
[1755352642298,2.92,187.63,187.6,1.99]
[1755352642491,2.92,187.63,187.59,3.64830807]
[1755352642687,2.92,187.68,187.61,1.99]
[1755352642895,2.92,187.66,187.61,1.99]
[1755352643094,2.92,187.64,187.61,1.99]